[Event "ROU-ch Men 2018"]
[Site "Olanesti"]
[Date "2018.05.14"]
[Round "1"]
[White "Rauca, Horatiu-Augustin"]
[Black "Stoleriu, George"]
[Result "0-1"]
[ECO "A00"]
[WhiteElo "1897"]
[BlackElo "2333"]
[Annotator "NA"]
[PlyCount "74"]
[EventDate "2018.??.??"]
[EventType "swiss"]
[EventCountry "ROU"]
[SourceTitle "playchess.com"]
[Source "ChessBase"]
[SourceQuality "1"]
[TimeControl "40/5400+30:1800+30"]

{[%evp 10,74,-23,-27,-11,-27,-1,-16,-11,-34,-15,-51,-10,-16,-12,-16,-6,0,0,-10,-3,-70,32767,32767,32767,32767,32767,32767,32767,32767,32767,32767,32767,32767,32767,-94,-110,-110,-77,-81,-79,-82,-77,-108,32767,-55,-76,-79,-80,-85,-94,32767,-61,32767,32767,-88,-99,32767,-235,-377,-372,-445,32767,-532,-514,-779,-869]} 1. g3 {[%emt 0:00:05]} e5 {[%emt 0:02:09]} 2. Bg2 {[%emt 0:00:22]} Nc6 {[%emt 0:00:03]} 3. d3 {[%emt 0:00:36]} g6 {[%emt 0:00:08]} 4. b3 {[%emt 0:00:37] A00: Irregular Openings} (4. e4 Bg7 5. Nc3 Nge7 6. f4 d6 7. Nf3 O-O 8. O-O f5 9. fxe5 dxe5 10. exf5 gxf5 11. Bd2 h6 12. a4 a5 13. Qe2 Be6 14. Nb5 Qd7 15. Bc3 Ng6 16. h4 {0-1 (37) Popovic,D (2528)-Ivic,V (2394) Ruma 2017}) 4... Bg7 {[%emt 0:00:09]} 5. Bb2 {[%emt 0:00:07]} Nge7 {[%emt 0:00:53]} 6. e3 {[%emt 0:00:55]} O-O {[%emt 0:00:16]} 7. Ne2 {[%emt 0:01:42]} d6 {[%emt 0:02:59]} 8. Nd2 {[%emt 0:02:05]} Be6 {[%emt 0:01:18] LiveBook: 3 Games} 9. a3 {[%emt 0:06:49]} Qd7 {[%emt 0:01:00]} 10. h3 {[%emt 0:03:18]} Bd5 $146 {[%emt 0:07:30]} ({Predecessor:} 10... a5 11. Nf3 h6 {½-½ (59) Blatny,P (2351)-Groetz,H (2335) Austria 2017}) 11. Bxd5 {[%emt 0:09:02]} Nxd5 {[%emt 0:00:06]} 12. c4 {[%emt 0:00:06]} Nde7 {[%emt 0:00:20]} 13. Qc2 {[%emt 0:00:05]} a5 {[%emt 0:08:15]} 14. O-O-O {[%emt 0:09:48]} Rfb8 {[%emt 0:06:00]} 15. d4 {[%emt 0:09:10]} (15. h4 $11) 15... exd4 {[%emt 0:15:17]} 16. Nxd4 {[%emt 0:06:39]} Nxd4 {[%emt 0:06:49]} 17. Bxd4 {[%emt 0:01:40]} Bxd4 {[%emt 0:01:44]} 18. exd4 {[%emt 0:00:05]} d5 {[%emt 0:01:58]} 19. g4 {[%emt 0:12:02]} Qd6 {[%emt 0:02:20]} 20. Kb2 {[%emt 0:07:27]} a4 {[%emt 0:02:47]} 21. b4 {[%emt 0:01:50]} Qf4 {[%emt 0:00:43]} 22. Qd3 {[%emt 0:08:08]} (22. Rhe1 $11 {keeps the balance.} Re8 23. Nb1) 22... dxc4 {[%emt 0:03:30]} ({Don't play} 22... Qxf2 $6 23. Rhf1 $11) 23. Nxc4 {[%emt 0:01:51]} Rd8 {[%emt 0:01:17]} 24. Qd2 {[%emt 0:05:34]} Nd5 {[%emt 0:00:56]} 25. Qxf4 {[%emt 0:01:37]} Nxf4 {[%emt 0:00:16]} 26. Rhe1 {[%emt 0:05:25]} Re8 {[%emt 0:00:16]} 27. Re3 {[%emt 0:02:10]} Rxe3 {[%emt 0:00:55]} 28. fxe3 {[%emt 0:00:16]} Nxh3 {[%emt 0:00:05]} 29. b5 {[%emt 0:00:28]} Nf2 {[%emt 0:00:40]} 30. Rg1 {[%emt 0:00:32]} Re8 {[%emt 0:00:33]} 31. Rg2 {[%emt 0:03:52]} Nd1+ {[%emt 0:00:32]} 32. Kc1 {[%emt 0:00:17]} Nc3 {[%emt 0:00:05]} ({Much weaker is} 32... Nxe3 33. Re2 $11) 33. b6 {[%emt 0:00:24]} cxb6 {[%emt 0:00:46]} 34. Kc2 {[%emt 0:00:34]} (34. Rb2 {might work better.}) 34... Nd5 {[%emt 0:00:15]} 35. Kd2 {[%emt 0:00:27]} b5 {[%emt 0:00:22]} 36. Nd6 {[%emt 0:00:49]} Rxe3 {[%emt 0:00:51]} 37. Nxb5 {[%emt 0:00:07]} Rb3 $19 {[%emt 0:00:06]} 0-1

[Event "ROU-ch Men 2018"]
[Site "Olanesti"]
[Date "2018.05.14"]
[Round "1"]
[White "Berechet, Stefan-Mario"]
[Black "Banzea, Alexandru-Bogdan"]
[Result "0-1"]
[ECO "A15"]
[WhiteElo "1879"]
[BlackElo "2325"]
[Annotator "NA"]
[PlyCount "90"]
[EventDate "2018.??.??"]
[EventType "swiss"]
[EventCountry "ROU"]
[SourceTitle "playchess.com"]
[Source "ChessBase"]
[SourceQuality "1"]
[TimeControl "40/5400+30:1800+30"]

1. c4 {[%emt 0:00:00]} Nf6 {[%emt 0:00:35]} 2. Nf3 {[%emt 0:00:00]} e6 {[%emt 0:00:27]} 3. g3 {[%emt 0:00:00]} d5 {[%emt 0:00:05]} 4. Bg2 {[%emt 0:00:05]} Be7 {[%emt 0:00:17]} 5. b3 {[%emt 0:00:07] A13: English Opening: 1...e6} (5. O-O O-O 6. b3 c5 7. cxd5 Nxd5 8. Nc3 Nc6 9. Bb2 Nxc3 10. dxc3 Qc7 11. Qc2 b6 12. Bc1 Bb7 13. Bf4 Qc8 14. Rad1 Rd8 15. h4 h6 16. Rxd8+ Nxd8 17. Rd1 {1-0 (59) Karjakin,S (2753)-Kramnik,V (2787) Wijk aan Zee 2018}) 5... d4 {[%emt 0:00:29]} 6. Bb2 {[%emt 0:00:05]} c5 {[%emt 0:00:34]} 7. b4 {[%emt 0:01:00]} O-O {[%emt 0:00:26]} 8. O-O {[%emt 0:00:25]} a5 {[%emt 0:15:07]} 9. bxc5 {[%emt 0:08:56]} Nc6 {[%emt 0:01:15] LiveBook: 5 Games} 10. Na3 {[%emt 0:03:56]} e5 {[%emt 0:02:37]} 11. d3 {[%emt 0:01:15]} Nd7 {[%emt 0:00:58]} 12. Nb5 {[%emt 0:00:52]} Nxc5 {[%emt 0:01:26]} 13. Nd2 {[%emt 0:01:08]} f5 $146 {[%emt 0:06:20]} ({Predecessor:} 13... Bg4 14. Ne4 Qd7 15. Nxc5 Bxc5 {1-0 (59) Varnam,L (2107)-Waters,C (2129) Torquay 2013}) 14. Nb3 {[%emt 0:04:25]} Ne6 {[%emt 0:01:13]} 15. a4 {[%emt 0:03:16]} Kh8 {[%emt 0:02:10]} (15... f4 $1 $15) 16. Ba3 $17 {[%emt 0:01:50]} (16. e3 $14 {keeps the upper hand.}) 16... Bxa3 {[%emt 0:00:37]} 17. Rxa3 {[%emt 0:00:39]} Nb4 {[%emt 0:10:08]} 18. Qd2 {[%emt 0:00:50]} f4 {[%emt 0:01:16]} 19. Raa1 {[%emt 0:07:57]} Ng5 {[%emt 0:04:12]} 20. h4 Ne6 {[%emt 0:01:56]} 21. Rab1 {[%emt 0:03:59]} Nc6 {[%emt 0:00:31]} 22. Be4 {[%emt 0:15:52]} g5 {[%emt 0:01:42]} 23. Kg2 {[%emt 0:01:44]} gxh4 {[%emt 0:03:02]} 24. Rh1 {[%emt 0:00:12]} Rg8 {[%emt 0:00:16]} 25. Rxh4 {[%emt 0:02:26]} Qxh4 {[%emt 0:01:13]} 26. Rh1 {[%emt 0:00:03]} Rxg3+ {[%emt 0:00:33]} 27. fxg3 {[%emt 0:00:31]} Qxg3+ {[%emt 0:00:10]} 28. Kf1 {[%emt 0:00:03]} Ng5 {[%emt 0:00:14]} 29. Bg2 {[%emt 0:01:06]} Bg4 {[%emt 0:01:16]} 30. Nd6 {[%emt 0:01:08]} Rf8 {[%emt 0:00:43]} 31. Qe1 {[%emt 0:00:43]} Bxe2+ {[%emt 0:00:54]} 32. Qxe2 {[%emt 0:00:23]} f3 {[%emt 0:00:07]} 33. Bxf3 {[%emt 0:01:41]} Rxf3+ {[%emt 0:00:06]} 34. Qxf3 {[%emt 0:00:14]} Qxf3+ {[%emt 0:00:16]} 35. Kg1 {[%emt 0:00:09]} Qg3+ {[%emt 0:00:08]} 36. Kf1 {[%emt 0:00:06]} Qxd3+ {[%emt 0:00:06]} 37. Kf2 {[%emt 0:00:15]} Qf3+ {[%emt 0:00:05]} 38. Kg1 {[%emt 0:00:12]} Qxb3 {[%emt 0:00:07]} 39. c5 {[%emt 0:00:25]} d3 {[%emt 0:00:33]} 40. Kh2 {[%emt 0:00:00]} d2 {[%emt 0:00:10]} 41. Rf1 {[%emt 0:00:45]} Qh3+ {[%emt 0:00:14]} 42. Kg1 {[%emt 0:00:06]} Qg3+ {[%emt 0:00:11]} 43. Kh1 {[%emt 0:00:15]} Nf3 {[%emt 0:00:31]} 44. Nf7+ {[%emt 0:00:11]} Kg7 {[%emt 0:00:03]} 45. Rxf3 {[%emt 0:00:22]} d1=R+ {[%emt 0:00:08]} 0-1

[Event "ROU-ch Men 2018"]
[Site "Olanesti"]
[Date "2018.05.14"]
[Round "1"]
[White "Pislariu, Stefanel-Vasilica"]
[Black "Posedaru, Bogdan"]
[Result "0-1"]
[ECO "D31"]
[WhiteElo "1863"]
[BlackElo "2307"]
[Annotator "ChessBase"]
[PlyCount "66"]
[EventDate "2018.??.??"]
[EventType "swiss"]
[EventCountry "ROU"]
[SourceTitle "playchess.com"]
[Source "ChessBase"]
[SourceQuality "1"]
[TimeControl "40/5400+30:1800+30"]

1. d4 {[%emt 0:00:00]} d5 {[%emt 0:00:04]} 2. c4 {[%emt 0:00:00]} e6 {[%emt 0:00:05]} 3. Nc3 {[%emt 0:00:05]} c6 {[%emt 0:00:09]} 4. Nf3 {[%emt 0:01:25]} dxc4 {[%emt 0:01:01]} 5. a4 {[%emt 0:00:40]} Bb4 {[%emt 0:00:28]} 6. g3 {[%emt 0:01:01]} Nf6 {[%emt 0:06:35]} 7. Bg2 {[%emt 0:00:29]} Nbd7 {[%emt 0:00:10]} 8. O-O {[%emt 0:01:34]} a5 {[%emt 0:00:16]} 9. Bg5 {[%emt 0:01:57]} h6 {[%emt 0:07:19]} 10. Bxf6 {[%emt 0:03:18]} Qxf6 {[%emt 0:00:08]} 11. e4 {[%emt 0:01:59]} e5 {[%emt 0:05:20]} 12. d5 {[%emt 0:08:11]} O-O {[%emt 0:08:57]} 13. Qc2 {[%emt 0:03:28]} Nb6 {[%emt 0:03:23]} 14. dxc6 {[%emt 0:06:16]} bxc6 {[%emt 0:00:29]} 15. Na2 {[%emt 0:08:44]} Bc5 {[%emt 0:10:08]} 16. Nd2 {[%emt 0:19:05]} Ba6 {[%emt 0:03:58]} 17. Nc3 {[%emt 0:02:49]} Rfd8 {[%emt 0:00:32]} 18. Rad1 {[%emt 0:02:02]} Rd3 {[%emt 0:03:00]} 19. Ne2 {[%emt 0:06:37]} Rad8 {[%emt 0:03:46]} 20. Nc1 {[%emt 0:00:23]} R3d6 {[%emt 0:01:31]} 21. Nf3 {[%emt 0:03:18]} c3 {[%emt 0:00:37]} 22. Rxd6 {[%emt 0:03:40]} Rxd6 {[%emt 0:06:03]} 23. Re1 {[%emt 0:01:17]} Rd2 {[%emt 0:00:52]} 24. Qxc3 {[%emt 0:03:15]} Bxf2+ {[%emt 0:00:08]} 25. Kh1 {[%emt 0:00:26]} Bxe1 {[%emt 0:00:19]} 26. Nxd2 {[%emt 0:00:33]} Nc4 {[%emt 0:02:25]} 27. Ncb3 {[%emt 0:01:23]} Qd8 {[%emt 0:08:00]} 28. Bf1 Bxd2 {[%emt 0:00:32]} 29. Nxd2 {[%emt 0:02:26]} Qxd2 {[%emt 0:00:40]} 30. Qxd2 {[%emt 0:00:52]} Nxd2 {[%emt 0:00:06]} 31. Bxa6 {[%emt 0:00:04]} Nb3 32. Kg2 {[%emt 0:01:11]} Nc5 {[%emt 0:01:31]} 33. Kf3 {[%emt 0:01:00]} Nxa6 {[%emt 0:00:08]} 0-1

[Event "ROU-ch Men 2018"]
[Site "Olanesti"]
[Date "2018.05.14"]
[Round "1"]
[White "Cenusa, Mihai"]
[Black "Rusan, Paul-Cristian"]
[Result "0-1"]
[ECO "B23"]
[WhiteElo "1819"]
[BlackElo "2213"]
[Annotator "NA"]
[PlyCount "88"]
[EventDate "2018.??.??"]
[EventType "swiss"]
[EventCountry "ROU"]
[SourceTitle "playchess.com"]
[Source "ChessBase"]
[SourceQuality "1"]
[TimeControl "40/5400+30:1800+30"]

{[%evp 8,72,-2,-7,14,0,14,0,10,-52,0,-56,-39,-52,-32,-48,-26,-58,-43,-47,-59,-59,-35,-58,-45,-103,-94,-187,-163,-315,-259,32767,-233,32767,32767,32767,32767,32767,32767,32767,32767,-808,32767,-435,-447,-463,32767,32767,-749,32767,32767,32767,-527,32767,32767,32767,-566,-521,-637,-670,-569,-439,-521,-1168,-1656,-1185,-1498]} 1. e4 {[%emt 0:00:00]} c5 {[%emt 0:00:15]} 2. Nc3 {[%emt 0:00:21]} e6 {[%emt 0:00:39]} 3. Nf3 {[%emt 0:00:40]} a6 {[%emt 0:00:44]} 4. d3 {[%emt 0:01:06]} Nc6 {[%emt 0:02:25] LiveBook: 4 Games} 5. Be2 {[%emt 0:03:23] B40: Sicilian: 2...e6, Unusual lines} (5. g3 d6 6. Bg2 Nf6 7. O-O Be7 8. a4 O-O 9. Re1 Qc7 10. Bf4 Nd7 11. Bg5 Nde5 12. Bxe7 Nxf3+ 13. Bxf3 Qxe7 14. Bg2 Bd7 15. f4 Rfc8 16. Qd2 Qd8 17. Kh1 h6 {0-1 (52) Kuzin,A (2385)-Savon,V (2461) Tula 2004}) 5... d5 {[%emt 0:02:38]} 6. exd5 {[%emt 0:00:34]} exd5 {[%emt 0:00:18]} 7. O-O {[%emt 0:00:21]} Nf6 {[%emt 0:04:43]} 8. b3 $146 {[%emt 0:03:53]} ({White should try} 8. Bg5 $11) ({Predecessor:} 8. Re1 Be7 9. h3 O-O 10. Bf1 h6 11. Ne2 Bd6 12. d4 Qb6 13. dxc5 Bxc5 {0-1 (46) Barbosa,D (1818)-Herrera,M (2147) Quibdo 2015}) 8... h6 {[%emt 0:02:57]} 9. Bf4 {[%emt 0:01:54]} ({White should try} 9. d4 $11) 9... Bd6 {[%emt 0:04:46]} 10. Bxd6 {[%emt 0:01:46]} Qxd6 {[%emt 0:00:17]} 11. d4 {[%emt 0:00:55]} O-O {[%emt 0:07:55]} 12. dxc5 {[%emt 0:00:43]} Qxc5 {[%emt 0:01:23]} 13. Na4 {[%emt 0:00:11]} Qa7 {[%emt 0:00:37]} 14. h3 {[%emt 0:05:57]} Bf5 {[%emt 0:01:07]} 15. Bd3 {[%emt 0:04:04]} Ne4 {[%emt 0:03:31]} 16. Nh4 {[%emt 0:16:00]} (16. Qc1 $15) 16... Bh7 {[%emt 0:00:50]} 17. Bxe4 {[%emt 0:00:06]} (17. Nf3 $17 {was called for.}) 17... dxe4 {[%emt 0:01:40]} ({But not} 17... Bxe4 18. Nc3 $15) 18. g3 {[%emt 0:00:43]} (18. c4 {was called for.}) 18... Rad8 {[%emt 0:08:22]} 19. Qe1 {[%emt 0:04:37]} Nd4 {[%emt 0:09:30]} 20. Rc1 {[%emt 0:01:20]} Rfe8 {[%emt 0:05:55]} 21. Kh1 {[%emt 0:10:35]} b5 {[%emt 0:02:58]} 22. Nb2 {[%emt 0:11:43]} Qd7 {[%emt 0:07:45]} 23. g4 {[%emt 0:00:24]} Qe7 {[%emt 0:04:35]} 24. f4 {[%emt 0:14:07]} exf3 {[%emt 0:04:13]} 25. Qxe7 {[%emt 0:03:42]} Rxe7 {[%emt 0:00:09]} 26. Rcd1 {[%emt 0:00:25]} Bxc2 {[%emt 0:01:17]} 27. Rd2 {[%emt 0:00:06]} Re2 {[%emt 0:02:19]} 28. Rf2 {[%emt 0:02:10]} Rxf2 {[%emt 0:06:52]} 29. Rxf2 {[%emt 0:00:05]} g5 {[%emt 0:01:08]} 30. Nf5 {[%emt 0:01:24]} Bxf5 {[%emt 0:01:07]} 31. gxf5 {[%emt 0:00:17]} Rd5 {[%emt 0:01:20]} 32. Nd1 {[%emt 0:02:15]} Nxf5 {[%emt 0:01:22]} 33. Nc3 {[%emt 0:00:57]} Ng3+ {[%emt 0:03:08]} 34. Kh2 {[%emt 0:00:46]} Rd3 {[%emt 0:00:13]} 35. Nb1 {[%emt 0:01:29]} (35. Kxg3 $142 Rxc3 36. Kg4) 35... Ne4 $19 {[%emt 0:00:23]} 36. Rf1 {[%emt 0:01:52]} b4 {[%emt 0:01:16]} 37. Re1 {[%emt 0:01:40]} f5 {[%emt 0:00:33]} 38. Rc1 {[%emt 0:00:13]} Kg7 {[%emt 0:00:35]} 39. h4 {[%emt 0:02:05]} g4 {[%emt 0:02:03]} 40. a3 {[%emt 0:00:00]} a5 {[%emt 0:00:14]} 41. axb4 {[%emt 0:01:11]} axb4 {[%emt 0:00:08]} 42. h5 {[%emt 0:00:18]} Kf6 {[%emt 0:00:24]} 43. Rc4 {[%emt 0:01:37]} Rxb3 {[%emt 0:00:27]} 44. Rc8 {[%emt 0:00:23]} Rb2+ {[%emt 0:00:16]} 0-1

[Event "ROU-ch Men 2018"]
[Site "Olanesti"]
[Date "2018.05.15"]
[Round "2"]
[White "Chima, Radu-Niculin"]
[Black "Pislariu, Stefanel-Vasilica"]
[Result "1-0"]
[ECO "C06"]
[WhiteElo "2095"]
[BlackElo "1863"]
[Annotator "NA RC"]
[PlyCount "62"]
[EventDate "2018.??.??"]
[EventType "swiss"]
[EventCountry "ROU"]
[SourceTitle "playchess.com"]
[Source "ChessBase"]
[SourceQuality "1"]
[TimeControl "40/5400+30:1800+30"]

1. e4 {[%emt 0:00:00]} e6 {[%emt 0:00:11]} 2. d4 {[%emt 0:00:00]} d5 {[%emt 0:00:07]} 3. Nd2 {[%emt 0:00:00]} Nf6 {[%emt 0:00:11]} 4. e5 {[%emt 0:00:00]} Nfd7 {[%emt 0:00:04]} 5. Bd3 {[%emt 0:00:00]} c5 {[%emt 0:00:16]} 6. c3 {[%emt 0:00:08]} Nc6 {[%emt 0:00:09]} 7. Ne2 {[%emt 0:00:30]} cxd4 {[%emt 0:00:22] LiveBook: 4915 Games} 8. cxd4 {[%emt 0:00:17]} f6 {[%emt 0:00:16]} 9. f4 {[%emt 0:16:06]} fxe5 {[%emt 0:02:05]} 10. dxe5 {[%emt 0:01:13]} Bc5 {[%emt 0:06:10] C06: French Tarrasch: 3...Nf6 4 e5 Nfd7 5 Bd3 main lines} (10... Nc5 11. Bb1 Bd7 12. O-O Qb6 13. Kh1 Be7 14. Nc3 O-O-O 15. a3 a5 16. b4 axb4 17. axb4 Nxb4 18. Nf3 {1-0 (28) Khairullin,I (2451)-Iljushin,A (2526) Moscow 2004}) 11. Nf3 {[%emt 0:01:59]} Qb6 {[%emt 0:07:36]} 12. Rf1 {[%emt 0:09:40]} (12. a3 $14) 12... Bb4+ {[%emt 0:16:21]} 13. Bd2 {[%emt 0:01:09]} Nc5 {[%emt 0:03:29]} 14. Bb1 {[%emt 0:20:24]} Ne4 $146 {[%emt 0:09:20]} ({Predecessor:} 14... Bd7 15. Ng5 Ne7 16. Nc3 Na4 17. Qb3 h6 18. Nxe6 Bxc3 19. Nxg7+ {1-0 (33) Schockmel,J-Kirsch,G Luxembourg 1997}) 15. Bxe4 {[%emt 0:03:51]} dxe4 {[%emt 0:00:14]} 16. Ng5 {[%emt 0:01:33]} e3 {[%emt 0:01:09]} 17. Bc3 {[%emt 0:00:17]} O-O {[%emt 0:17:15]} (17... Be7 $11) 18. Qd3 {[%emt 0:01:14]} g6 {[%emt 0:00:21]} 19. O-O-O {[%emt 0:02:37]} Bxc3 {[%emt 0:06:44]} 20. Nxc3 {[%emt 0:01:59]} Rd8 {[%emt 0:01:29]} 21. Qe4 {[%emt 0:03:23]} Rd2 {[%emt 0:01:01]} 22. Rxd2 {[%emt 0:00:38]} exd2+ {[%emt 0:00:05]} 23. Kb1 $18 {[%emt 0:00:14]} Bd7 {[%emt 0:02:21]} 24. Qd3 {[%emt 0:05:39]} Rd8 {[%emt 0:00:14]} 25. Qxd2 {[%emt 0:00:57]} Be8 {[%emt 0:00:14]} 26. Qf2 {[%emt 0:01:35]} Nd4 {[%emt 0:02:51]} 27. Nce4 {[%emt 0:02:52]} Bb5 {[%emt 0:02:18]} 28. Rd1 {[%emt 0:02:28]} Ba4 {[%emt 0:02:07]} 29. Nf6+ {[%emt 0:01:01]} Kg7 {[%emt 0:01:39]} 30. Rxd4 {[%emt 0:01:28]} Rxd4 {[%emt 0:02:54]} 31. Qxd4 Qd8 1-0

[Event "ROU-ch Men 2018"]
[Site "Olanesti"]
[Date "2018.05.15"]
[Round "2"]
[White "Albu, George"]
[Black "Bobocea, Laurentiu-Vlad"]
[Result "1/2-1/2"]
[ECO "D15"]
[WhiteElo "2038"]
[BlackElo "1853"]
[Annotator "NA RC"]
[PlyCount "141"]
[EventDate "2018.??.??"]
[EventType "swiss"]
[EventCountry "ROU"]
[SourceTitle "playchess.com"]
[Source "ChessBase"]
[SourceQuality "1"]
[TimeControl "40/5400+30:1800+30"]

1. d4 {[%emt 0:00:55]} d5 {[%emt 0:00:07]} 2. c4 {[%emt 0:00:25]} c6 {[%emt 0:00:05]} 3. Nc3 {[%emt 0:00:05]} Nf6 {[%emt 0:00:06]} 4. Nf3 {[%emt 0:00:05]} a6 {[%emt 0:00:04]} 5. c5 {[%emt 0:00:06]} Bf5 {[%emt 0:00:07]} 6. Bf4 {[%emt 0:00:06]} Nbd7 {[%emt 0:00:11]} 7. e3 {[%emt 0:00:09]} Nh5 {[%emt 0:01:20] D15: Slav Defence: 4 Nc3 a6 and gambit lines after 4 Nc3 dxc4} 8. Be5 {[%emt 0:00:14]} f6 {[%emt 0:00:12]} 9. Bg3 {[%emt 0:00:07]} e5 {[%emt 0:02:24]} 10. Nh4 {[%emt 0:00:44]} Bg6 $1 {[%emt 0:00:06] LiveBook: 5 Games} 11. f4 {[%emt 0:15:56]} Qc7 $146 {[%emt 0:13:21]} (11... Bf7 $15) ({Predecessor:} 11... Nxg3 12. hxg3 Bf7 13. Qc2 e4 14. g4 g6 15. Be2 {1-0 (51) Halkias,S (2564)-Svetushkin,D (2607) Kallithea 2009}) 12. Nxg6 {[%emt 0:37:58]} hxg6 {[%emt 0:00:59]} 13. Qg4 {[%emt 0:00:11]} Rh6 {[%emt 0:00:52]} 14. fxe5 {[%emt 0:06:02]} Nxg3 {[%emt 0:03:54]} 15. Qxg3 {[%emt 0:00:39]} fxe5 {[%emt 0:00:14]} 16. Be2 {[%emt 0:00:55]} Be7 {[%emt 0:08:23]} 17. O-O-O {[%emt 0:07:40]} Bh4 {[%emt 0:09:08]} 18. Qg4 {[%emt 0:01:29]} O-O-O {[%emt 0:01:13]} 19. g3 {[%emt 0:01:57]} Bf6 {[%emt 0:00:54]} 20. h4 {[%emt 0:06:35]} Kb8 {[%emt 0:02:22]} 21. b4 {[%emt 0:03:51]} exd4 {[%emt 0:03:55]} 22. exd4 {[%emt 0:00:11]} Re8 {[%emt 0:14:04]} 23. Kc2 {[%emt 0:00:30]} Rhh8 {[%emt 0:12:40]} 24. a4 {[%emt 0:06:19]} Re3 {[%emt 0:00:39]} 25. Rhg1 {[%emt 0:00:23]} a5 {[%emt 0:05:03]} 26. Rd3 {[%emt 0:02:59]} Rxd3 {[%emt 0:03:13]} 27. Bxd3 {[%emt 0:00:11]} axb4 {[%emt 0:00:25]} 28. Na2 {[%emt 0:01:42]} Qa5 {[%emt 0:05:44]} 29. Kb3 {[%emt 0:04:30]} Bxd4 {[%emt 0:03:32]} 30. Qxd4 {[%emt 0:01:00]} Nxc5+ {[%emt 0:01:25]} 31. Kb2 {[%emt 0:00:07]} Nxa4+ {[%emt 0:00:54]} 32. Kc2 {[%emt 0:01:09] [#]} Nc5 $2 {[%emt 0:03:12]} (32... b3+ $1 $19 {[%mdl 512]} 33. Kb1 (33. Kxb3 Nc5+) 33... bxa2+ 34. Ka1 Nc5) 33. Nxb4 {[%emt 0:00:28]} Qa4+ {[%emt 0:00:11]} 34. Kc3 {[%emt 0:00:29]} Qa3+ {[%emt 0:02:37]} 35. Kc2 {[%emt 0:00:01]} Qa4+ {[%emt 0:01:29]} 36. Kc3 {[%emt 0:00:06]} Nxd3 {[%emt 0:01:20]} 37. Kxd3 {[%emt 0:01:10]} Qb3+ {[%emt 0:00:28]} 38. Kd2 {[%emt 0:00:44]} Re8 {[%emt 0:01:14]} 39. Qf4+ {[%emt 0:00:39]} Kc8 {[%emt 0:00:46]} 40. Rc1 {[%emt 0:00:00]} Qb2+ {[%emt 0:01:00]} 41. Rc2 {[%emt 0:01:07]} Qf6 {[%emt 0:03:35]} (41... Qa1 $11 {keeps the balance.}) 42. Qxf6 {[%emt 0:01:01]} (42. Nxd5 $1 $16 {[%csl Gd5][%cal Rf4c7]} Qe5 43. Qxe5 Rxe5 44. Ne3) 42... gxf6 {[%emt 0:00:07]} 43. Nxc6 {[%emt 0:00:05]} bxc6 {[%emt 0:00:23]} 44. Rxc6+ {[%emt 0:00:05]} Kd7 {[%emt 0:00:30]} 45. Rxf6 {[%emt 0:00:07]} Re6 {[%emt 0:00:10]} 46. Rf4 {[%emt 0:01:21]} Kd6 {[%emt 0:00:44]} 47. Kd3 {[%emt 0:00:15]} Kc5 {[%emt 0:02:27]} 48. Rg4 {[%emt 0:00:09]} Ra6 {[%emt 0:01:55]} 49. Rg5 {[%emt 0:00:18]} Ra3+ {[%emt 0:06:09]} 50. Kc2 {[%emt 0:00:50]} Ra6 {[%emt 0:00:14]} 51. Kd3 {[%emt 0:00:08]} Ra3+ {[%emt 0:00:04]} 52. Ke2 {[%emt 0:00:07]} Ra6 {[%emt 0:00:05]} 53. Ke3 {[%emt 0:00:03]} Kc4 {[%emt 0:02:18]} 54. h5 {[%emt 0:03:21]} gxh5 {[%emt 0:00:17]} 55. Rxh5 {[%emt 0:00:06]} d4+ {[%emt 0:02:03]} 56. Kf4 {[%emt 0:01:48]} Kc3 {[%emt 0:03:05]} 57. g4 {[%emt 0:00:20]} d3 {[%emt 0:00:52]} 58. Rh1 {[%emt 0:02:52]} d2 {[%emt 0:05:26]} 59. Kf5 {[%emt 0:00:40]} Ra5+ {[%emt 0:01:16]} 60. Kf6 {[%emt 0:00:10]} Ra6+ {[%emt 0:00:20]} 61. Kf5 $11 {[%emt 0:00:07]} Rd6 {[%emt 0:00:51]} 62. g5 {[%emt 0:02:07]} d1=Q {[%emt 0:03:17]} 63. Rxd1 {[%emt 0:00:07]} Rxd1 {[%emt 0:00:03]} 64. g6 {[%emt 0:00:07]} Kd4 {[%emt 0:00:54]} 65. g7 {[%emt 0:00:21]} Rg1 {[%emt 0:00:05]} 66. Kf6 {[%emt 0:00:04]} Kd5 {[%emt 0:00:59]} 67. Kf7 {[%emt 0:00:15]} Rf1+ {[%emt 0:00:31]} 68. Ke7 {[%emt 0:00:22]} Re1+ {[%emt 0:00:04]} 69. Kf7 {[%emt 0:00:04]} Rg1 {[%emt 0:00:12]} 70. g8=Q {[%emt 0:00:09]} Rxg8 {[%emt 0:00:04]} 71. Kxg8 {[%emt 0:00:04]} 1/2-1/2